[Event "Titled Tuesday Blitz July 6 2021"]
[White "Hebden, Mark L"]
[Black "Manukian, Artak"]
[WhiteFideId "400084"]
[BlackFideId "13301373"]
[WhiteElo "2457"]
[BlackElo "2400"]
[Result "1-0"]
[Round "07"]
[TimeControl "180+1"]
[Date "2021.07.06"]
[WhiteClock "0:01:39"]
[BlackClock "0:01:05"]

1. d4 {[%clk 0:03:00]}  Nf6 {[%clk 0:02:59]} 2. Nf3 {[%clk 0:03:01]}  g6 {[%clk 0:03:00]} 3. g3 {[%clk 0:03:00]}  Bg7 {[%clk 0:03:00]} 4. Bg2 {[%clk 0:03:00]}  d6 {[%clk 0:03:01]} 5. O-O {[%clk 0:03:01]}  O-O {[%clk 0:03:02]} 6. c4 {[%clk 0:03:00]}  Nbd7 {[%clk 0:03:02]} 7. Nc3 {[%clk 0:03:00]}  e5 {[%clk 0:03:02]} 8. e4 {[%clk 0:03:00]}  a5 {[%clk 0:03:01]} 9. h3 {[%clk 0:02:58]}  exd4 {[%clk 0:03:01]} 10. Nxd4 {[%clk 0:02:57]}  Nc5 {[%clk 0:03:02]} 11. Ndb5 {[%clk 0:02:56]}  Re8 {[%clk 0:03:01]} 12. Re1 {[%clk 0:02:55]}  h5 {[%clk 0:02:57]} 13. Bf4 {[%clk 0:02:53]}  Be6 {[%clk 0:02:56]} 14. b3 {[%clk 0:02:52]}  Nh7 {[%clk 0:02:49]} 15. Qd2 {[%clk 0:02:51]}  h4 {[%clk 0:02:42]} 16. g4 {[%clk 0:02:50]}  g5 {[%clk 0:02:36]} 17. Be3 {[%clk 0:02:46]}  Be5 {[%clk 0:02:35]} 18. Rac1 {[%clk 0:02:39]}  f6 {[%clk 0:02:32]} 19. Bd4 {[%clk 0:02:31]}  Qe7 {[%clk 0:02:23]} 20. Nd5 {[%clk 0:02:25]}  Bxd5 {[%clk 0:02:20]} 21. exd5 {[%clk 0:02:24]}  Qg7 {[%clk 0:02:13]} 22. Be3 {[%clk 0:02:24]}  Nf8 {[%clk 0:02:10]} 23. Nd4 {[%clk 0:02:23]}  Ng6 {[%clk 0:02:06]} 24. Nf5 {[%clk 0:02:21]}  Qf8 {[%clk 0:02:06]} 25. Bxc5 {[%clk 0:02:18]}  dxc5 {[%clk 0:02:05]} 26. d6 {[%clk 0:02:18]}  c6 {[%clk 0:01:58]} 27. d7 {[%clk 0:02:09]}  Red8 {[%clk 0:01:55]} 28. Rcd1 {[%clk 0:02:04]}  Bd4 {[%clk 0:01:48]} 29. Nxd4 {[%clk 0:02:01]}  cxd4 {[%clk 0:01:48]} 30. Qxd4 {[%clk 0:01:58]}  Ne5 {[%clk 0:01:48]} 31. Rxe5 {[%clk 0:01:57]}  fxe5 {[%clk 0:01:48]} 32. Qxe5 {[%clk 0:01:57]}  Qf4 {[%clk 0:01:40]} 33. Qe7 {[%clk 0:01:48]}  a4 {[%clk 0:01:28]} 34. Rd6 {[%clk 0:01:41]}  Qxd6 {[%clk 0:01:04]} 35. Qxd6 {[%clk 0:01:39]}  axb3 {[%clk 0:01:05]} 36. axb3 {[%clk 0:01:39]} 1-0


[Site "https://www.chess.com"]

[Event "Titled Tuesday Blitz July 6 2021"]
[White "Jarovinsky, Alexey"]
[Black "Vignesh, N R"]
[WhiteFideId "14115131"]
[BlackFideId "25012215"]
[WhiteElo "2446"]
[BlackElo "2401"]
[Result "0-1"]
[Round "07"]
[TimeControl "180+1"]
[Date "2021.07.06"]
[WhiteClock "0:00:01"]
[BlackClock "0:00:35"]

1. Nc3 {[%clk 0:03:00]}  c5 {[%clk 0:02:58]} 2. e4 {[%clk 0:02:55]}  d6 {[%clk 0:02:58]} 3. g3 {[%clk 0:02:48]}  Nc6 {[%clk 0:02:55]} 4. Bg2 {[%clk 0:02:49]}  g6 {[%clk 0:02:53]} 5. d3 {[%clk 0:02:47]}  Bg7 {[%clk 0:02:52]} 6. Bd2 {[%clk 0:02:47]}  e6 {[%clk 0:02:49]} 7. Qc1 {[%clk 0:02:45]}  Rb8 {[%clk 0:02:49]} 8. Nge2 {[%clk 0:02:43]}  b5 {[%clk 0:02:48]} 9. O-O {[%clk 0:02:41]}  b4 {[%clk 0:02:48]} 10. Nd1 {[%clk 0:02:41]}  a5 {[%clk 0:02:48]} 11. f4 {[%clk 0:02:31]}  Nge7 {[%clk 0:02:46]} 12. c4 {[%clk 0:02:15]}  bxc3 {[%clk 0:02:43]} 13. bxc3 {[%clk 0:02:14]}  Ba6 {[%clk 0:02:41]} 14. Nf2 {[%clk 0:02:13]}  O-O {[%clk 0:02:39]} 15. g4 {[%clk 0:02:12]}  f5 {[%clk 0:02:33]} 16. gxf5 {[%clk 0:02:04]}  gxf5 {[%clk 0:02:33]} 17. Ng3 {[%clk 0:02:03]}  fxe4 {[%clk 0:02:31]} 18. Bxe4 {[%clk 0:01:56]}  d5 {[%clk 0:02:28]} 19. Bg2 {[%clk 0:01:52]}  Ng6 {[%clk 0:02:17]} 20. Bh3 {[%clk 0:01:37]}  Qd6 {[%clk 0:02:12]} 21. Nh5 {[%clk 0:01:36]}  Bh6 {[%clk 0:02:04]} 22. f5 {[%clk 0:01:33]}  Bxd2 {[%clk 0:02:02]} 23. Qxd2 {[%clk 0:01:34]}  exf5 {[%clk 0:02:00]} 24. Qh6 {[%clk 0:01:31]}  Rb7 {[%clk 0:01:56]} 25. Rae1 {[%clk 0:01:25]}  Nce5 {[%clk 0:01:53]} 26. Kh1 {[%clk 0:01:23]}  Nxd3 {[%clk 0:01:50]} 27. Nxd3 {[%clk 0:01:08]}  Bxd3 {[%clk 0:01:51]} 28. Rf2 {[%clk 0:00:41]}  Be4+ {[%clk 0:01:46]} 29. Bg2 {[%clk 0:00:38]}  Re7 {[%clk 0:01:34]} 30. Rg1 {[%clk 0:00:34]}  Qe5 {[%clk 0:01:27]} 31. h3 {[%clk 0:00:26]}  f4 {[%clk 0:01:22]} 32. Bxe4 {[%clk 0:00:23]}  Qxe4+ {[%clk 0:01:20]} 33. Kh2 {[%clk 0:00:23]}  f3 {[%clk 0:01:14]} 34. Rg4 {[%clk 0:00:20]}  Qe3 {[%clk 0:01:05]} 35. Qxe3 {[%clk 0:00:03]}  Rxe3 {[%clk 0:01:04]} 36. c4 {[%clk 0:00:03]}  d4 {[%clk 0:01:01]} 37. Rg5 {[%clk 0:00:02]}  Re5 {[%clk 0:00:56]} 38. Rxe5 {[%clk 0:00:01]}  Nxe5 {[%clk 0:00:57]} 39. Kg3 {[%clk 0:00:01]}  d3 {[%clk 0:00:54]} 40. Nf4 {[%clk 0:00:01]}  Kh8 {[%clk 0:00:48]} 41. Nd5 {[%clk 0:00:02]}  h5 {[%clk 0:00:37]} 42. Ne3 {[%clk 0:00:02]}  h4+ {[%clk 0:00:35]} 43. Kxh4 {[%clk 0:00:01]}  Nxc4 {[%clk 0:00:35]} 44. Nxc4 {[%clk 0:00:01]}  Rf4+ {[%clk 0:00:35]} 0-1


[Site "https://www.chess.com"]

[Event "Titled Tuesday Blitz July 6 2021"]
[White "Jobava, Baadur"]
[Black "Lortkipanidze, Nodar"]
[WhiteFideId "13601520"]
[BlackFideId "13604058"]
[WhiteElo "2748"]
[BlackElo "2312"]
[Result "1-0"]
[Round "07"]
[TimeControl "180+1"]
[Date "2021.07.06"]
[WhiteClock "0:02:45"]
[BlackClock "0:01:13"]

1. d4 {[%clk 0:03:00]}  e6 {[%clk 0:02:59]} 2. Nc3 {[%clk 0:03:01]}  d5 {[%clk 0:02:58]} 3. Bf4 {[%clk 0:03:01]}  a6 {[%clk 0:02:58]} 4. e3 {[%clk 0:02:57]}  c5 {[%clk 0:02:52]} 5. Nf3 {[%clk 0:02:55]}  Nc6 {[%clk 0:02:51]} 6. a3 {[%clk 0:02:56]}  Nf6 {[%clk 0:02:37]} 7. h3 {[%clk 0:02:50]}  Be7 {[%clk 0:02:30]} 8. dxc5 {[%clk 0:02:50]}  Bxc5 {[%clk 0:02:29]} 9. Bd3 {[%clk 0:02:50]}  Qe7 {[%clk 0:02:24]} 10. O-O {[%clk 0:02:49]}  e5 {[%clk 0:02:19]} 11. Bg5 {[%clk 0:02:49]}  Be6 {[%clk 0:02:19]} 12. e4 {[%clk 0:02:49]}  h6 {[%clk 0:01:20]} 13. Bxf6 {[%clk 0:02:47]}  Qxf6 {[%clk 0:01:16]} 14. exd5 {[%clk 0:02:45]}  Bxh3 {[%clk 0:01:13]} 1-0


[Site "https://www.chess.com"]

[Event "Titled Tuesday Blitz July 6 2021"]
[White "Kalajzic, Ivan"]
[Black "Ibrahimli, Murad"]
[WhiteFideId "14506378"]
[BlackFideId "13410229"]
[WhiteElo "2163"]
[BlackElo "2109"]
[Result "0-1"]
[Round "07"]
[TimeControl "180+1"]
[Date "2021.07.06"]
[WhiteClock "0:00:02"]
[BlackClock "0:02:13"]

1. b3 {[%clk 0:03:00]}  Nf6 {[%clk 0:02:58]} 2. Bb2 {[%clk 0:03:01]}  g6 {[%clk 0:02:57]} 3. Bxf6 {[%clk 0:03:01]}  exf6 {[%clk 0:02:58]} 4. c4 {[%clk 0:03:01]}  d5 {[%clk 0:02:59]} 5. cxd5 {[%clk 0:03:01]}  Qxd5 {[%clk 0:03:00]} 6. Nc3 {[%clk 0:03:01]}  Qa5 {[%clk 0:03:00]} 7. a3 {[%clk 0:03:00]}  c6 {[%clk 0:03:01]} 8. b4 {[%clk 0:02:56]}  Qd8 {[%clk 0:03:01]} 9. g3 {[%clk 0:02:56]}  f5 {[%clk 0:03:02]} 10. Bg2 {[%clk 0:02:56]}  Bg7 {[%clk 0:03:02]} 11. e3 {[%clk 0:02:57]}  a5 {[%clk 0:03:03]} 12. Nge2 {[%clk 0:02:54]}  O-O {[%clk 0:03:02]} 13. O-O {[%clk 0:02:54]}  axb4 {[%clk 0:03:01]} 14. axb4 {[%clk 0:02:54]}  Rxa1 {[%clk 0:03:01]} 15. Qxa1 {[%clk 0:02:55]}  Qxd2 {[%clk 0:03:01]} 16. Rd1 {[%clk 0:02:36]}  Qxe2 {[%clk 0:02:55]} 17. Nxe2 {[%clk 0:02:34]}  Bxa1 {[%clk 0:02:55]} 18. Rxa1 {[%clk 0:02:35]}  Na6 {[%clk 0:02:56]} 19. Rb1 {[%clk 0:02:25]}  Rd8 {[%clk 0:02:53]} 20. Nd4 {[%clk 0:02:22]}  Nc7 {[%clk 0:02:48]} 21. Ra1 {[%clk 0:01:53]}  Kf8 {[%clk 0:02:36]} 22. Ra5 {[%clk 0:01:36]}  Ke7 {[%clk 0:02:27]} 23. Bxc6 {[%clk 0:01:25]}  Rxd4 {[%clk 0:02:27]} 24. exd4 {[%clk 0:01:24]}  bxc6 {[%clk 0:02:27]} 25. h4 {[%clk 0:01:11]}  h5 {[%clk 0:02:26]} 26. Kg2 {[%clk 0:01:09]}  Kd6 {[%clk 0:02:26]} 27. Kf3 {[%clk 0:01:08]}  Bd7 {[%clk 0:02:24]} 28. Ke2 {[%clk 0:00:48]}  Nd5 {[%clk 0:02:20]} 29. f3 {[%clk 0:00:20]}  Nxb4 {[%clk 0:02:19]} 30. Kd2 {[%clk 0:00:19]}  Nd5 {[%clk 0:02:19]} 31. Ra1 {[%clk 0:00:17]}  f4 {[%clk 0:02:20]} 32. gxf4 {[%clk 0:00:16]}  Nxf4 {[%clk 0:02:21]} 33. Ke3 {[%clk 0:00:16]}  Nd5+ {[%clk 0:02:21]} 34. Kd2 {[%clk 0:00:15]}  Ne7 {[%clk 0:02:20]} 35. Re1 {[%clk 0:00:14]}  Nf5 {[%clk 0:02:20]} 36. Rh1 {[%clk 0:00:13]}  Nxd4 {[%clk 0:02:20]} 37. Ke3 {[%clk 0:00:13]}  Nf5+ {[%clk 0:02:20]} 38. Kf4 {[%clk 0:00:13]}  Be6 {[%clk 0:02:21]} 39. Kg5 {[%clk 0:00:14]}  Bd5 {[%clk 0:02:21]} 40. Rf1 {[%clk 0:00:11]}  Nd4 {[%clk 0:02:20]} 41. f4 {[%clk 0:00:09]}  Nf5 {[%clk 0:02:20]} 42. Kf6 {[%clk 0:00:09]}  Nxh4 {[%clk 0:02:20]} 43. Re1 {[%clk 0:00:08]}  Nf5 {[%clk 0:02:20]} 44. Re8 {[%clk 0:00:08]}  c5 {[%clk 0:02:19]} 45. Rd8+ {[%clk 0:00:08]}  Kc6 {[%clk 0:02:19]} 46. Rc8+ {[%clk 0:00:07]}  Kb5 {[%clk 0:02:19]} 47. Ke5 {[%clk 0:00:07]}  Be6 {[%clk 0:02:18]} 48. Rb8+ {[%clk 0:00:07]}  Kc4 {[%clk 0:02:17]} 49. Rb1 {[%clk 0:00:07]}  Kd3 {[%clk 0:02:15]} 50. Rd1+ {[%clk 0:00:07]}  Ke2 {[%clk 0:02:15]} 51. Rc1 {[%clk 0:00:07]}  c4 {[%clk 0:02:15]} 52. Kf6 {[%clk 0:00:07]}  Ne3 {[%clk 0:02:14]} 53. Ra1 {[%clk 0:00:03]}  c3 {[%clk 0:02:14]} 54. f5 {[%clk 0:00:03]}  Nxf5 {[%clk 0:02:14]} 55. Kg5 {[%clk 0:00:02]}  Nd4 {[%clk 0:02:14]} 56. Kf4 {[%clk 0:00:02]}  c2 {[%clk 0:02:13]} 57. Kg3 {[%clk 0:00:02]}  Nb3 {[%clk 0:02:13]} 0-1


[Site "https://www.chess.com"]

[Event "Titled Tuesday Blitz July 6 2021"]
[White "Keymer, Vincent"]
[Black "Vykouk, Jan"]
[WhiteFideId "12940690"]
[BlackFideId "349658"]
[WhiteElo "2474"]
[BlackElo "2387"]
[Result "1-0"]
[Round "07"]
[TimeControl "180+1"]
[Date "2021.07.06"]
[WhiteClock "0:01:05"]
[BlackClock "0:00:34"]

1. Nf3 {[%clk 0:03:00]}  Nf6 {[%clk 0:02:59]} 2. c4 {[%clk 0:03:00]}  g6 {[%clk 0:03:00]} 3. Nc3 {[%clk 0:03:00]}  Bg7 {[%clk 0:03:00]} 4. g3 {[%clk 0:03:01]}  O-O {[%clk 0:03:00]} 5. Bg2 {[%clk 0:03:01]}  d6 {[%clk 0:03:01]} 6. d4 {[%clk 0:03:01]}  c6 {[%clk 0:03:02]} 7. e4 {[%clk 0:03:01]}  a6 {[%clk 0:03:03]} 8. O-O {[%clk 0:02:54]}  Nfd7 {[%clk 0:03:02]} 9. Qc2 {[%clk 0:02:45]}  b5 {[%clk 0:03:02]} 10. b3 {[%clk 0:02:45]}  bxc4 {[%clk 0:02:50]} 11. bxc4 {[%clk 0:02:46]}  c5 {[%clk 0:02:50]} 12. d5 {[%clk 0:02:44]}  a5 {[%clk 0:02:39]} 13. Rb1 {[%clk 0:02:21]}  Ba6 {[%clk 0:02:36]} 14. Nb5 {[%clk 0:02:20]}  Bxb5 {[%clk 0:02:32]} 15. Rxb5 {[%clk 0:02:21]}  Qc7 {[%clk 0:02:25]} 16. Bd2 {[%clk 0:02:17]}  Ne5 {[%clk 0:02:16]} 17. Rfb1 {[%clk 0:02:15]}  Nxf3+ {[%clk 0:02:14]} 18. Bxf3 {[%clk 0:02:16]}  Ra7 {[%clk 0:02:03]} 19. Qa4 {[%clk 0:02:05]}  Nd7 {[%clk 0:01:55]} 20. Rxa5 {[%clk 0:01:52]}  Rfa8 {[%clk 0:01:54]} 21. Rxa7 {[%clk 0:01:49]}  Rxa7 {[%clk 0:01:55]} 22. Qb3 {[%clk 0:01:49]}  Bd4 {[%clk 0:01:50]} 23. Kg2 {[%clk 0:01:40]}  e5 {[%clk 0:01:47]} 24. a4 {[%clk 0:01:25]}  Kg7 {[%clk 0:01:37]} 25. a5 {[%clk 0:01:24]}  Qd8 {[%clk 0:01:32]} 26. h4 {[%clk 0:01:19]}  h5 {[%clk 0:01:28]} 27. Qa4 {[%clk 0:01:14]}  f5 {[%clk 0:00:56]} 28. Qc6 {[%clk 0:01:10]}  fxe4 {[%clk 0:00:51]} 29. Bxe4 {[%clk 0:01:10]}  Qf6 {[%clk 0:00:45]} 30. f3 {[%clk 0:01:07]}  Qf8 {[%clk 0:00:41]} 31. Rb7 {[%clk 0:01:04]}  Rxb7 {[%clk 0:00:34]} 32. Qxb7 {[%clk 0:01:05]} 1-0


[Site "https://www.chess.com"]

[Event "Titled Tuesday Blitz July 6 2021"]
[White "Khanin, Semen"]
[Black "Rustemov, Alexander"]
[WhiteFideId "4111990"]
[BlackFideId "4119002"]
[WhiteElo "2521"]
[BlackElo "2860"]
[Result "1-0"]
[Round "07"]
[TimeControl "180+1"]
[Date "2021.07.06"]
[WhiteClock "0:00:06"]
[BlackClock "0:00:01"]

1. e4 {[%clk 0:03:00]}  e6 {[%clk 0:02:58]} 2. d4 {[%clk 0:03:00]}  d5 {[%clk 0:02:58]} 3. e5 {[%clk 0:03:01]}  c5 {[%clk 0:02:58]} 4. c3 {[%clk 0:03:02]}  Qb6 {[%clk 0:02:58]} 5. Nf3 {[%clk 0:03:02]}  Bd7 {[%clk 0:02:59]} 6. Bd3 {[%clk 0:03:02]}  cxd4 {[%clk 0:02:54]} 7. Nxd4 {[%clk 0:03:01]}  Ne7 {[%clk 0:02:53]} 8. O-O {[%clk 0:03:00]}  Nbc6 {[%clk 0:02:53]} 9. Nxc6 {[%clk 0:02:59]}  Nxc6 {[%clk 0:02:52]} 10. Qe2 {[%clk 0:02:59]}  Qc7 {[%clk 0:02:35]} 11. Re1 {[%clk 0:02:50]}  Be7 {[%clk 0:02:21]} 12. Nd2 {[%clk 0:02:50]}  O-O {[%clk 0:02:21]} 13. Nf3 {[%clk 0:02:44]}  Rae8 {[%clk 0:02:20]} 14. h4 {[%clk 0:02:42]}  f6 {[%clk 0:02:20]} 15. exf6 {[%clk 0:02:41]}  Bxf6 {[%clk 0:02:19]} 16. Ng5 {[%clk 0:02:41]}  Bxg5 {[%clk 0:02:11]} 17. hxg5 {[%clk 0:02:40]}  e5 {[%clk 0:02:06]} 18. Bxh7+ {[%clk 0:02:18]}  Kxh7 {[%clk 0:02:01]} 19. Qh5+ {[%clk 0:02:18]}  Kg8 {[%clk 0:02:00]} 20. g6 {[%clk 0:02:18]}  Rf5 {[%clk 0:01:51]} 21. Qh7+ {[%clk 0:02:00]}  Kf8 {[%clk 0:01:52]} 22. g4 {[%clk 0:02:00]}  Rf6 {[%clk 0:01:18]} 23. Bg5 {[%clk 0:01:58]}  Qd8 {[%clk 0:00:50]} 24. Qh8+ {[%clk 0:01:52]}  Ke7 {[%clk 0:00:50]} 25. Qxg7+ {[%clk 0:01:52]}  Ke6 {[%clk 0:00:50]} 26. f4 {[%clk 0:01:38]}  Ref8 {[%clk 0:00:33]} 27. fxe5 {[%clk 0:00:27]}  Nxe5 {[%clk 0:00:21]} 28. Bf4 {[%clk 0:00:27]}  Kd6 {[%clk 0:00:06]} 29. Bxe5+ {[%clk 0:00:27]}  Kc6 {[%clk 0:00:07]} 30. Bxf6 {[%clk 0:00:27]}  Rxf6 {[%clk 0:00:08]} 31. Rf1 {[%clk 0:00:20]}  Qb6+ {[%clk 0:00:07]} 32. Kh1 {[%clk 0:00:18]}  Re6 {[%clk 0:00:03]} 33. Qd4 {[%clk 0:00:13]}  Qxb2 {[%clk 0:00:01]} 34. Rae1 {[%clk 0:00:11]}  Qc2 {[%clk 0:00:01]} 35. Rxe6+ {[%clk 0:00:10]}  Bxe6 {[%clk 0:00:02]} 36. Qf6 {[%clk 0:00:09]}  Qe4+ {[%clk 0:00:02]} 37. Kg1 {[%clk 0:00:09]}  Kb5 {[%clk 0:00:02]} 38. g7 {[%clk 0:00:09]}  Bxg4 {[%clk 0:00:02]} 39. Qf4 {[%clk 0:00:08]}  Qg6 {[%clk 0:00:01]} 40. Qg3 {[%clk 0:00:07]}  Qh5 {[%clk 0:00:01]} 41. g8=Q {[%clk 0:00:07]}  Be2 {[%clk 0:00:01]} 42. Q8g5 {[%clk 0:00:06]} 1-0


[Site "https://www.chess.com"]

[Event "Titled Tuesday Blitz July 6 2021"]
[White "Khusnutdinov, Rustam"]
[Black "Arabidze, Meri"]
[WhiteFideId "13701703"]
[BlackFideId "13604040"]
[WhiteElo "2571"]
[BlackElo "2432"]
[Result "1-0"]
[Round "07"]
[TimeControl "180+1"]
[Date "2021.07.06"]
[WhiteClock "0:01:30"]
[BlackClock "0:00:03"]

1. e4 {[%clk 0:03:00]}  c5 {[%clk 0:02:59]} 2. Nf3 {[%clk 0:03:00]}  e6 {[%clk 0:03:00]} 3. g3 {[%clk 0:03:00]}  Nc6 {[%clk 0:03:00]} 4. Bg2 {[%clk 0:03:00]}  d6 {[%clk 0:03:00]} 5. O-O {[%clk 0:02:59]}  Nf6 {[%clk 0:03:01]} 6. Re1 {[%clk 0:02:59]}  Be7 {[%clk 0:03:01]} 7. c3 {[%clk 0:03:00]}  O-O {[%clk 0:03:01]} 8. d4 {[%clk 0:03:00]}  cxd4 {[%clk 0:03:02]} 9. cxd4 {[%clk 0:03:01]}  d5 {[%clk 0:03:03]} 10. e5 {[%clk 0:03:02]}  Ne4 {[%clk 0:03:03]} 11. Nbd2 {[%clk 0:02:58]}  Bb4 {[%clk 0:02:40]} 12. Re3 {[%clk 0:02:55]}  Nxd2 {[%clk 0:02:37]} 13. Bxd2 {[%clk 0:02:56]}  Bxd2 {[%clk 0:02:36]} 14. Qxd2 {[%clk 0:02:52]}  Bd7 {[%clk 0:02:33]} 15. Rc1 {[%clk 0:02:51]}  Rc8 {[%clk 0:02:31]} 16. Rec3 {[%clk 0:02:47]}  Qb6 {[%clk 0:02:27]} 17. Rc5 {[%clk 0:02:36]}  Ne7 {[%clk 0:02:20]} 18. b4 {[%clk 0:02:34]}  Bb5 {[%clk 0:02:14]} 19. Bf1 {[%clk 0:02:29]}  Bxf1 {[%clk 0:02:03]} 20. Kxf1 {[%clk 0:02:30]}  Rc6 {[%clk 0:01:57]} 21. b5 {[%clk 0:02:14]}  Rxc5 {[%clk 0:01:51]} 22. Rxc5 {[%clk 0:02:15]}  a6 {[%clk 0:01:43]} 23. a4 {[%clk 0:02:04]}  axb5 {[%clk 0:01:43]} 24. axb5 {[%clk 0:02:01]}  h6 {[%clk 0:01:40]} 25. Kg2 {[%clk 0:02:01]}  Ra8 {[%clk 0:01:35]} 26. Qc2 {[%clk 0:01:57]}  Ra3 {[%clk 0:01:14]} 27. Rc7 {[%clk 0:01:51]}  Kf8 {[%clk 0:00:19]} 28. Qc5 {[%clk 0:01:49]}  Qxc5 {[%clk 0:00:19]} 29. dxc5 {[%clk 0:01:50]}  Rc3 {[%clk 0:00:17]} 30. c6 {[%clk 0:01:32]}  bxc6 {[%clk 0:00:15]} 31. b6 {[%clk 0:01:32]}  Rb3 {[%clk 0:00:15]} 32. b7 {[%clk 0:01:31]}  Ke8 {[%clk 0:00:03]} 33. Rc8+ {[%clk 0:01:30]}  Kd7 {[%clk 0:00:03]} 34. b8=Q {[%clk 0:01:30]} 1-0


[Site "https://www.chess.com"]

[Event "Titled Tuesday Blitz July 6 2021"]
[White "Koelle, Tobias"]
[Black "Pruijssers, Roeland"]
[WhiteFideId "16207378"]
[BlackFideId "1013068"]
[WhiteElo "2364"]
[BlackElo "2545"]
[Result "0-1"]
[Round "07"]
[TimeControl "180+1"]
[Date "2021.07.06"]
[WhiteClock "0:01:09"]
[BlackClock "0:00:22"]

1. Nf3 {[%clk 0:03:00]}  f5 {[%clk 0:02:59]} 2. d3 {[%clk 0:02:53]}  Nc6 {[%clk 0:02:59]} 3. e4 {[%clk 0:02:52]}  e5 {[%clk 0:02:56]} 4. Nc3 {[%clk 0:02:51]}  Bb4 {[%clk 0:02:52]} 5. Bd2 {[%clk 0:02:50]}  d6 {[%clk 0:02:49]} 6. a3 {[%clk 0:02:50]}  Bxc3 {[%clk 0:02:47]} 7. Bxc3 {[%clk 0:02:51]}  Nf6 {[%clk 0:02:48]} 8. exf5 {[%clk 0:02:51]}  Bxf5 {[%clk 0:02:48]} 9. d4 {[%clk 0:02:51]}  e4 {[%clk 0:02:27]} 10. d5 {[%clk 0:02:40]}  exf3 {[%clk 0:02:07]} 11. dxc6 {[%clk 0:02:39]}  Qe7+ {[%clk 0:02:07]} 12. Kd2 {[%clk 0:02:34]}  Ne4+ {[%clk 0:02:01]} 13. Kc1 {[%clk 0:02:33]}  fxg2 {[%clk 0:01:35]} 14. cxb7 {[%clk 0:02:26]}  Rb8 {[%clk 0:01:32]} 15. Bxg2 {[%clk 0:02:27]}  Qg5+ {[%clk 0:01:29]} 16. Bd2 {[%clk 0:02:03]}  Qxg2 {[%clk 0:01:28]} 17. Rg1 {[%clk 0:01:57]}  Qxf2 {[%clk 0:01:22]} 18. Bb4 {[%clk 0:01:56]}  O-O {[%clk 0:01:14]} 19. Rf1 {[%clk 0:01:48]}  Qe3+ {[%clk 0:01:08]} 20. Kb1 {[%clk 0:01:48]}  Be6 {[%clk 0:00:54]} 21. Re1 {[%clk 0:01:48]}  Qf4 {[%clk 0:00:52]} 22. Qd4 {[%clk 0:01:46]}  Bf5 {[%clk 0:00:44]} 23. Qxa7 {[%clk 0:01:45]}  Nd2+ {[%clk 0:00:38]} 24. Bxd2 {[%clk 0:01:44]}  Qxd2 {[%clk 0:00:39]} 25. Rc1 {[%clk 0:01:45]}  Qd5 {[%clk 0:00:37]} 26. Qe3 {[%clk 0:01:28]}  Rxb7 {[%clk 0:00:37]} 27. Rg1 {[%clk 0:01:28]}  Rfb8 {[%clk 0:00:32]} 28. b4 {[%clk 0:01:25]}  c5 {[%clk 0:00:31]} 29. Ra2 {[%clk 0:01:14]}  cxb4 {[%clk 0:00:30]} 30. Rb2 {[%clk 0:01:14]}  bxa3 {[%clk 0:00:29]} 31. Rxg7+ {[%clk 0:01:10]}  Kxg7 {[%clk 0:00:30]} 32. Qg5+ {[%clk 0:01:09]}  Bg6 {[%clk 0:00:22]} 0-1


[Site "https://www.chess.com"]

[Event "Titled Tuesday Blitz July 6 2021"]
[White "Koellner, Ruben Gideon"]
[Black "Leitao, Rafael"]
[WhiteFideId "12993093"]
[BlackFideId "2101246"]
[WhiteElo "2549"]
[BlackElo "2609"]
[Result "1-0"]
[Round "07"]
[TimeControl "180+1"]
[Date "2021.07.06"]
[WhiteClock "0:00:15"]
[BlackClock "0:00:27"]

1. d4 {[%clk 0:02:54]}  Nf6 {[%clk 0:02:59]} 2. Bg5 {[%clk 0:02:54]}  d5 {[%clk 0:02:57]} 3. e3 {[%clk 0:02:48]}  Ne4 {[%clk 0:02:55]} 4. Bf4 {[%clk 0:02:45]}  c5 {[%clk 0:02:55]} 5. c3 {[%clk 0:02:44]}  cxd4 {[%clk 0:02:50]} 6. exd4 {[%clk 0:02:33]}  Nc6 {[%clk 0:02:50]} 7. Nf3 {[%clk 0:02:31]}  g6 {[%clk 0:02:45]} 8. Bd3 {[%clk 0:02:29]}  Bg7 {[%clk 0:02:45]} 9. Nbd2 {[%clk 0:02:28]}  f5 {[%clk 0:02:41]} 10. h4 {[%clk 0:02:23]}  Qb6 {[%clk 0:02:32]} 11. Qb3 {[%clk 0:02:18]}  Be6 {[%clk 0:02:01]} 12. Ng5 {[%clk 0:02:08]}  Bg8 {[%clk 0:01:50]} 13. f3 {[%clk 0:01:56]}  Nxd2 {[%clk 0:01:46]} 14. Bxd2 {[%clk 0:01:56]}  Qxb3 {[%clk 0:01:40]} 15. axb3 {[%clk 0:01:55]}  O-O-O {[%clk 0:01:25]} 16. Kf2 {[%clk 0:01:43]}  e5 {[%clk 0:01:24]} 17. dxe5 {[%clk 0:01:39]}  Bxe5 {[%clk 0:01:20]} 18. Bb5 {[%clk 0:01:29]}  Kb8 {[%clk 0:01:08]} 19. Rhe1 {[%clk 0:01:14]}  Bf6 {[%clk 0:01:01]} 20. Bf4+ {[%clk 0:01:06]}  Ka8 {[%clk 0:00:53]} 21. Bxc6 {[%clk 0:00:45]}  bxc6 {[%clk 0:00:53]} 22. Be3 {[%clk 0:00:45]}  h6 {[%clk 0:00:43]} 23. Rxa7+ {[%clk 0:00:17]}  Kb8 {[%clk 0:00:43]} 24. Rea1 {[%clk 0:00:16]}  hxg5 {[%clk 0:00:39]} 25. hxg5 {[%clk 0:00:16]}  d4 {[%clk 0:00:27]} 26. Bf4+ {[%clk 0:00:15]} 1-0


[Site "https://www.chess.com"]